bitfinex-derivatives/quotes_ETHF0:USTF0_20240930
["timestamp","ask_amount","ask_price","bid_price","bid_amount"]
[1727722028131,3.59388,2590.8,2590.6,0.3861]
[1727722028132,0.3861,2590.7,2590.6,0.3861]
[1727722028338,0.38613,2590.5,2590.3,0.38615]
[1727722028536,4.5884791,2590.8,2590.7,0.38609]
[1727722029035,0.38609,2590.7,2590.6,0.38609]
[1727722029634,0.38607,2590.8,2590.7,0.38609]
[1727722029935,0.9945991,2590.9,2590.4,6.89312]
[1727722030128,0.38608,2590.8,2590.7,0.38608]
[1727722031225,0.9945991,2590.9,2590.6,2.72]
[1727722031525,0.38608,2590.8,2590.7,0.38608]
[1727722031730,1.3806591,2590.9,2590.8,0.38607]
[1727722032132,0.9945991,2590.9,2590.6,2.72]
[1727722032533,0.38608,2590.8,2590.7,0.38607]
[1727722033131,0.9945991,2590.9,2590.8,0.38607]
[1727722033432,0.9945991,2591.0,2590.9,0.38606]
[1727722033633,0.9945991,2591.4,2591.3,0.386]
[1727722033932,0.9945991,2591.6,2591.3,5.9278]
[1727722034126,0.9945991,2591.7,2591.3,6.8928]
[1727722034335,0.99487459,2591.8,2591.7,0.38594]
[1727722034535,1.49189865,2591.8,2591.7,0.38594]
[1727722034735,0.99483034,2591.9,2591.7,0.38594]
[1727722034934,1.38075034,2591.9,2591.8,0.38592]
[1727722035131,1.38075034,2591.9,2591.5,3.499]
[1727722035437,1.38072985,2591.9,2591.8,0.38592]
[1727722035826,0.38593,2591.8,2591.7,0.38593]
[1727722036026,0.38593,2591.8,2591.6,0.38594]
[1727722036027,0.38594,2591.7,2591.6,0.38594]
[1727722036226,0.38598,2591.5,2591.4,0.38598]
[1727722036425,0.96485,2591.7,2591.3,3.59379]
[1727722036426,2.4796,2591.6,2591.3,3.59379]
[1727722036631,0.38603,2591.2,2591.0,0.38603]
[1727722036829,0.38603,2591.2,2590.9,0.779]
[1727722037037,1.95978985,2591.4,2591.0,0.38604]
[1727722037234,0.38603,2591.2,2591.0,0.38604]
[1727722037436,0.38603,2591.2,2591.1,0.38603]
[1727722037736,1.95978985,2591.4,2591.1,0.38602]
[1727722037737,0.38601,2591.3,2591.1,0.38602]
[1727722037929,1.38079985,2591.4,2591.2,0.38601]
[1727722038131,1.38079985,2591.4,2590.9,3.499]
[1727722038132,0.99480985,2591.4,2591.3,0.386]
[1727722038330,5.08567865,2591.5,2591.4,0.38598]
[1727722038331,0.99480985,2591.5,2591.4,0.38598]
[1727722038533,0.7904,2591.6,2591.5,0.38597]
[1727722038534,1.78520985,2591.6,2591.5,0.38597]
[1727722038935,2.17115985,2591.6,2591.5,0.38597]
[1727722039333,5.56073985,2591.8,2591.3,2.72]
[1727722039536,5.56073985,2591.8,2591.7,0.38594]
[1727722039537,5.17480985,2591.8,2591.7,0.38594]
[1727722039845,5.56072985,2591.8,2591.7,0.38594]
[1727722040141,5.56072985,2591.8,2591.6,3.10594]
[1727722040142,0.38594,2591.7,2591.6,3.10594]
[1727722040344,5.17480985,2591.8,2591.7,0.38594]
[1727722040345,5.56073985,2591.8,2591.7,0.38594]
[1727722040647,1.38073985,2591.8,2591.7,0.38594]
[1727722041339,0.99480985,2591.8,2591.4,2.72]
[1727722041540,0.99480985,2591.7,2591.4,2.72]
[1727722041737,1.38075985,2591.7,2591.6,0.38595]
[1727722041934,0.99480985,2591.7,2591.2,4.0316]
[1727722042140,0.38599,2591.4,2591.3,0.38599]
[1727722042936,1.38079985,2591.4,2591.3,0.38599]
[1727722043142,0.386,2591.3,2591.1,3.10602]
[1727722043343,0.99512987,2591.2,2591.1,0.38602]
[1727722043734,0.38607,2590.9,2590.8,0.38607]
[1727722043942,4.85432987,2591.2,2590.9,0.38606]
[1727722043943,1.87794865,2591.0,2590.9,0.38606]
[1727722044443,0.38605,2591.0,2590.9,0.38606]
[1727722044647,2.3752382,2591.1,2591.0,0.38604]
[1727722044845,5.1969982,2591.2,2591.1,0.38603]
[1727722045045,2.48610097,2591.4,2591.1,0.38603]
[1727722045046,1.9891982,2591.3,2591.2,0.38601]
[1727722045341,1.9891982,2591.3,2591.2,1.19691]
[1727722045342,1.49329604,2591.3,2591.2,1.19691]
[1727722045537,1.49329604,2591.3,2591.2,5.05611]
[1727722045740,1.49329604,2591.3,2591.2,8.26391]
[1727722045741,0.99584295,2591.3,2591.2,8.26391]
[1727722045940,0.99584295,2591.4,2591.3,0.386]
[1727722046141,0.99584295,2591.4,2591.3,3.106]
[1727722046142,0.99584346,2591.4,2591.3,3.106]
[1727722046455,1.49329604,2591.4,2591.3,2.72]
[1727722046746,0.99604751,2591.4,2591.3,3.106]
[1727722046944,0.99603517,2591.4,2591.3,2.72]
[1727722047148,0.99609322,2591.4,2591.3,2.72]
[1727722047350,0.99609322,2591.4,2591.3,6.9652]
[1727722047547,0.99609322,2591.4,2591.3,4.2452]
[1727722049549,1.49329604,2591.5,2591.4,0.38598]
[1727722049947,1.9891982,2591.6,2591.4,3.8592]
[1727722049948,0.99654348,2591.6,2591.4,3.8592]
[1727722050155,0.99654348,2591.6,2591.5,0.38597]
[1727722050650,1.38249348,2591.6,2591.5,0.38597]
[1727722050851,0.99654348,2591.6,2591.5,0.38597]
[1727722051239,1.38249348,2591.6,2591.5,0.38597]
[1727722051450,0.99654348,2591.6,2591.2,4.0187]
[1727722051650,0.99654348,2591.6,2591.3,0.38598]
[1727722051651,0.38599,2591.4,2591.3,0.38598]
[1727722051858,0.38599,2591.4,2591.2,0.8109]
[1727722051859,0.99671497,2591.4,2591.2,0.8109]
[1727722052063,0.99671497,2591.4,2591.3,0.386]
[1727722052064,1.38270497,2591.4,2591.3,0.386]
[1727722052249,0.99671497,2591.4,2591.3,0.386]
[1727722052455,1.38269497,2591.4,2591.3,0.386]
[1727722052762,2.19780497,2591.5,2591.4,0.38598]
[1727722052962,0.38599,2591.4,2591.3,0.38599]
[1727722053263,1.49467222,2591.4,2591.3,0.386]
[1727722054053,1.81169753,2591.5,2591.2,1.77593]
[1727722054261,0.99659753,2591.5,2591.4,0.38598]
[1727722055361,1.38255753,2591.6,2591.3,0.7839]
[1727722055558,1.38255753,2591.6,2591.5,0.38597]
[1727722055764,0.99659753,2591.6,2591.5,0.38597]
[1727722056660,1.38254753,2591.6,2591.5,0.38597]
[1727722056861,11.35307222,2591.6,2591.0,0.8019]
[1727722057064,11.35307222,2591.6,2591.0,0.38604]
[1727722057065,0.38604,2591.1,2591.0,0.38604]
[1727722057365,1.38233526,2591.1,2591.0,0.38604]
[1727722057765,1.38233526,2591.1,2590.8,0.8322]
[1727722057766,0.99629526,2591.1,2590.8,0.8322]
[1727722057967,0.99629526,2591.0,2590.8,0.8322]
[1727722058170,0.38608,2590.8,2590.7,0.38608]
[1727722058366,1.88034223,2590.8,2590.7,0.38608]
[1727722058868,1.88034223,2590.8,2590.0,0.75568573]
[1727722058869,11.35426223,2590.8,2590.0,0.75568573]
[1727722059161,1.49401109,2590.1,2590.0,0.75568573]
[1727722059356,1.88019109,2590.1,2590.0,0.75568573]
[1727722059554,1.49401109,2590.1,2590.0,1.14187573]
[1727722059758,0.99550516,2590.1,2590.0,1.14187573]
[1727722060460,0.99550516,2590.1,2590.0,0.75568573]
[1727722060667,2.66057109,2590.2,2590.0,0.75568573]
[1727722060962,0.99518291,2590.1,2590.0,0.75568573]
[1727722061160,1.88019109,2590.1,2590.0,0.75568573]
[1727722061369,7.45478,2590.1,2590.0,0.75568573]
[1727722061562,9.44679478,2590.1,2590.0,0.75568573]
[1727722061965,6.23899478,2590.1,2590.0,0.75568573]
[1727722062462,4.24698,2590.1,2590.0,0.75568573]
[1727722062663,2.77241478,2590.2,2590.0,0.75568573]
[1727722062863,0.9941292,2590.2,2590.1,0.38618]
[1727722063066,1.3802992,2590.2,2589.9,0.38621]
[1727722063373,1.38027341,2590.2,2590.0,0.38619]
[1727722063763,1.38027341,2590.2,2589.8,4.0242]
[1727722063764,1.38027341,2590.2,2589.9,0.3862]
[1727722064270,0.99410341,2590.2,2589.8,0.8164]
[1727722064575,1.38027341,2590.2,2589.8,0.8164]
[1727722064774,1.38027341,2590.2,2590.0,0.38619]
[1727722064977,0.99410341,2590.2,2590.0,0.38619]
[1727722065168,4.17316,2590.4,2590.0,0.38619]
[1727722065169,5.16726341,2590.4,2590.0,0.38619]
[1727722065368,0.38617,2590.2,2590.0,0.38619]
[1727722065678,0.38615,2590.3,2590.1,0.38618]
[1727722066572,3.2078,2590.4,2590.1,0.38617]
[1727722066573,3.59394,2590.4,2590.1,0.38617]
[1727722066766,0.38615,2590.3,2590.1,0.38617]
[1727722067273,1.78020341,2590.7,2590.2,3.8608]
[1727722067472,0.38608,2590.8,2590.6,0.38609]
[1727722067676,0.38607,2590.8,2590.6,0.38609]
[1727722068571,5.94983341,2591.0,2590.5,0.3861]
[1727722068572,0.3861,2590.7,2590.5,0.3861]
[1727722068779,5.94983341,2591.0,2590.4,3.2078]
[1727722068972,0.38608,2590.8,2590.6,0.38609]
[1727722069273,0.38609,2590.8,2590.6,0.38609]
[1727722069477,0.38609,2590.8,2590.4,3.2078]
[1727722069679,0.38607,2590.9,2590.8,0.38607]
[1727722069883,0.38608,2590.8,2590.7,0.38608]
[1727722071285,0.38609,2590.7,2590.6,0.38609]
[1727722071678,0.38611,2590.6,2590.5,0.38611]
[1727722072884,0.38611,2590.6,2590.3,6.7469]
[1727722072885,0.3861,2590.7,2590.6,0.3861]
[1727722073184,1.38020341,2590.7,2590.6,0.3861]
[1727722073684,1.38019341,2590.7,2590.6,0.3861]
[1727722074681,0.99410341,2590.7,2590.6,0.3861]
[1727722074887,1.38019341,2590.7,2590.6,0.3861]
[1727722075088,0.99410341,2590.7,2590.6,0.3861]
[1727722075384,1.38019341,2590.7,2590.6,0.3861]
[1727722075791,0.38609,2590.7,2590.6,0.3861]
[1727722076578,1.38019341,2590.7,2590.6,0.3861]
[1727722077183,1.38019341,2590.7,2590.5,0.38611]
[1727722077184,0.38612,2590.6,2590.5,0.38611]
[1727722077386,0.99410341,2590.7,2590.3,0.8291]
[1727722077697,0.38617,2590.2,2590.1,0.38617]
[1727722077988,0.99410341,2590.3,2589.6,6.7578]
[1727722078178,0.99410341,2590.3,2589.6,7.72343]
[1727722078179,0.38619,2590.1,2589.6,7.72343]
[1727722078381,0.38619,2590.1,2590.0,0.38619]
[1727722078681,4.20190341,2590.2,2590.1,0.38618]
[1727722078885,4.20029421,2590.2,2590.1,0.38618]
[1727722079083,4.58646421,2590.2,2590.0,0.38618]
[1727722079378,4.58646421,2590.2,2590.1,0.38618]
[1727722079584,0.38618,2590.1,2589.9,0.38619]
[1727722079785,0.38618,2590.1,2590.0,0.38619]
[1727722080391,9.8608,2590.1,2589.8,0.38622]
[1727722080587,0.38621,2589.9,2589.8,0.38622]
[1727722080988,0.38621,2589.9,2589.4,5.3136]
[1727722080989,3.8616,2589.9,2589.4,5.3136]
[1727722081195,1.6229,2590.0,2589.7,0.38623]
[1727722081382,0.38621,2589.9,2589.7,0.38623]
[1727722081578,0.38623,2589.8,2589.4,1.6379]
[1727722081880,1.6229,2590.0,2589.7,0.38623]
[1727722081881,0.38622,2589.9,2589.7,0.38623]
[1727722082084,0.99249421,2590.1,2589.7,2.71]
[1727722082284,3.2078,2590.2,2589.7,3.67558]
[1727722082893,3.2078,2590.2,2590.1,0.38618]
[1727722083284,0.99249421,2590.4,2589.7,2.71]
[1727722083492,1.21242,2590.5,2590.4,0.38613]
[1727722084185,0.8761,2590.6,2590.5,0.38612]
[1727722084487,5.06259421,2591.0,2590.5,0.96529]
[1727722084682,0.38607,2590.9,2590.8,0.38606]
[1727722085088,4.24607,2590.9,2590.8,0.38606]
[1727722085390,0.38608,2590.8,2590.7,0.38607]
[1727722085586,0.38609,2590.7,2590.6,2.0569]
[1727722085790,0.38609,2590.7,2590.2,4.17321]
[1727722085791,4.17304,2590.7,2590.2,3.2078]
[1727722085990,0.38611,2590.6,2590.5,0.38611]
[1727722086293,2.71,2590.8,2590.1,4.4041]
[1727722086490,0.38611,2590.6,2590.5,0.38611]
[1727722087594,0.38612,2590.5,2590.4,0.38612]
[1727722087801,3.67521,2590.8,2590.2,4.1732]
[1727722087802,3.67521,2590.8,2590.2,3.2078]
[1727722087994,0.38612,2590.5,2590.4,0.38611]
[1727722088389,3.86,2590.5,2590.4,0.38611]
[1727722088591,2.71,2590.8,2590.2,3.2078]
[1727722088794,0.38611,2590.6,2590.5,0.38611]
[1727722089190,0.38614,2590.4,2590.3,0.38614]
[1727722089593,0.96527,2590.6,2590.1,2.65954]
[1727722089892,0.38611,2590.6,2590.5,0.38611]
[1727722090698,3.67521,2590.8,2590.6,0.38609]
[1727722090699,0.3861,2590.7,2590.6,0.38609]
[1727722090901,4.66770421,2590.8,2590.3,0.96537]
[1727722090902,1.37857421,2590.8,2590.7,0.38609]
[1727722091094,0.3861,2590.7,2590.1,8.57733]
[1727722091295,0.3861,2590.7,2590.5,0.38611]
[1727722091296,0.38611,2590.6,2590.5,0.38611]
[1727722092101,0.38611,2590.6,2590.2,0.96541]
[1727722092102,0.38609,2590.7,2590.6,0.38609]
[1727722092302,1.95765421,2590.9,2590.2,0.96541]
[1727722092504,1.95765421,2590.9,2590.7,0.38608]
[1727722092505,0.38608,2590.8,2590.7,0.38608]
[1727722092707,0.99249421,2590.9,2590.8,0.38607]
[1727722092907,1.37853421,2591.0,2590.9,0.38606]
[1727722093199,0.38604,2591.0,2590.9,0.38606]
[1727722093510,0.99249421,2591.1,2591.0,0.38604]
[1727722093703,0.38603,2591.1,2591.0,0.38604]
[1727722093901,3.8592,2591.1,2590.7,2.71382]
[1727722094098,0.38605,2591.0,2590.9,0.38605]
[1727722095302,1.87712527,2591.0,2590.9,0.38605]
[1727722095693,1.87712527,2591.0,2590.4,3.2078]
[1727722095694,10.82432,2591.0,2590.4,3.2078]
[1727722095896,10.82432,2591.0,2590.5,0.38611]
[1727722095897,1.37974367,2590.6,2590.5,0.38611]
[1727722096097,0.38612,2590.5,2590.4,0.38612]
[1727722096299,4.85363367,2590.5,2590.3,1.7362]
[1727722096503,1.37976367,2590.4,2590.3,2.12234]
[1727722096705,0.99363367,2590.4,2590.3,2.12234]
[1727722097402,0.99363367,2590.4,2590.3,2.12235]
[1727722097603,0.99363367,2590.5,2590.4,0.38613]
[1727722098195,1.37975367,2590.5,2590.4,0.38613]
[1727722098507,0.99363367,2590.5,2590.4,0.38613]
[1727722098805,0.99433039,2590.5,2590.4,0.38613]
[1727722099403,1.87656051,2590.6,2590.5,0.38612]
[1727722100404,2.86681478,2590.7,2590.3,1.7362]
[1727722100405,1.99201478,2590.7,2590.6,0.3861]
[1727722100904,1.99201478,2590.8,2590.7,0.38609]
[1727722101211,1.99201478,2590.8,2590.5,0.9653]
[1727722101212,1.98974827,2590.8,2590.5,3.6753]
[1727722101408,1.98974827,2590.8,2590.7,0.38609]
[1727722102107,1.98974827,2590.9,2590.5,3.6753]
[1727722102299,1.49327824,2590.9,2590.5,3.6753]
[1727722102609,0.9955488,2590.8,2590.7,0.38609]
[1727722102809,1.87933824,2590.9,2590.8,0.38607]
[1727722103401,1.49348892,2590.9,2590.8,0.38607]
[1727722103603,0.38606,2590.9,2590.8,0.38607]
[1727722104005,1.87955798,2590.9,2590.8,0.38607]
[1727722104613,2.71795798,2590.9,2590.8,0.38607]
[1727722105001,1.22446,2590.9,2590.8,0.38607]
[1727722105200,3.21555761,2590.9,2590.8,0.38607]
[1727722105515,0.38609,2590.8,2590.7,0.38607]
[1727722105713,1.87963091,2590.8,2590.7,0.38607]
[1727722107107,0.3861,2590.7,2590.6,0.38609]
[1727722107405,0.38613,2590.5,2590.4,0.38612]
[1727722108200,1.87998849,2590.5,2590.4,0.38612]
[1727722108404,5.85109761,2590.5,2590.0,4.0651]
[1727722108605,0.99604564,2590.3,2590.2,0.38616]
[1727722109308,1.79654564,2590.4,2590.0,2.65458]
[1727722109514,0.99604564,2590.4,2590.3,0.38615]
[1727722109908,1.49406847,2590.5,2590.4,0.38613]
[1727722110110,1.49406847,2590.5,2590.3,2.71]
[1727722110111,1.49406847,2590.6,2590.5,0.38612]
[1727722110411,1.99109761,2590.7,2590.6,0.3861]
[1727722112515,1.99109761,2590.8,2590.5,1.7487]
[1727722112712,1.49472913,2590.6,2590.5,2.13482]
[1727722112908,1.49472913,2590.6,2590.5,2.96422]
[1727722113616,1.49472913,2590.6,2590.5,2.13482]
[1727722114310,0.99688411,2590.7,2590.5,11.5265]
[1727722114515,0.99688411,2590.8,2590.7,0.38609]
[1727722115612,1.38295411,2590.8,2590.7,0.38609]
[1727722115807,1.49472913,2590.9,2590.7,0.38609]
[1727722116005,1.49472913,2590.8,2590.5,1.7487]
[1727722116203,1.49531636,2590.6,2590.5,1.7487]
[1727722116412,1.49531636,2590.6,2590.5,2.13482]
[1727722116913,1.88141636,2590.6,2590.5,2.13482]
[1727722117111,1.49531636,2590.6,2590.5,2.13482]
[1727722117511,2.37718761,2590.7,2590.6,0.3861]
[1727722117512,1.99109761,2590.7,2590.6,0.3861]
[1727722117706,2.37718761,2590.7,2590.6,0.3861]
[1727722117911,1.99109761,2590.7,2590.6,0.3861]
[1727722118410,2.37718761,2590.7,2590.6,0.3861]
[1727722118712,1.99109761,2590.7,2590.2,4.17321]
[1727722118915,0.38609,2590.7,2590.6,0.3861]
[1727722119305,0.38609,2590.7,2590.4,0.38612]
[1727722119512,4.7036894,2590.5,2589.9,0.96552]
[1727722119818,0.99683626,2590.1,2590.0,0.38619]
[1727722120025,1.38301626,2590.1,2590.0,0.38619]
[1727722120317,0.38619,2590.0,2589.9,2.085]
[1727722120507,0.38619,2590.0,2589.9,1.6988]
[1727722120508,1.8812266,2590.0,2589.9,1.6988]
[1727722120813,0.38619,2590.0,2589.5,3.2078]
[1727722121019,0.99666636,2589.8,2589.5,4.9066]
[1727722121214,1.49499955,2589.9,2589.5,4.9066]
[1727722121411,0.99643385,2589.8,2589.7,0.38624]
[1727722121605,1.49499955,2589.8,2589.7,0.38624]
[1727722122007,0.99647221,2589.8,2589.5,4.9066]
[1727722122205,1.49499955,2589.9,2589.5,4.9066]
[1727722122417,0.99635294,2589.8,2589.5,4.9066]
[1727722122617,0.99635294,2589.8,2589.7,0.38624]
[1727722123023,1.49499955,2589.8,2589.7,0.38624]
[1727722124113,1.88122955,2589.8,2589.6,0.38624]
[1727722124314,0.99619012,2589.7,2589.6,0.38624]
[1727722124514,0.99619012,2589.7,2589.5,2.08506]
[1727722124813,0.99619012,2589.7,2589.3,4.0879]
[1727722124814,0.99619012,2589.6,2589.0,3.2078]
[1727722125015,0.99595631,2589.4,2589.3,0.3863]
[1727722125320,4.59126955,2589.5,2589.1,0.8941]
[1727722125518,0.99543555,2589.4,2589.3,0.3863]
[1727722125715,0.99543555,2589.4,2589.1,0.8941]
[1727722126018,2.71,2589.2,2588.6,3.2078]
[1727722126318,0.99543555,2589.1,2588.6,4.9357]
[1727722126516,0.99543555,2589.1,2588.9,0.38635]
[1727722126726,0.99543555,2589.1,2589.0,0.38634]
[1727722126908,0.99543555,2589.1,2588.6,5.90169]
[1727722126909,7.79911955,2589.2,2588.9,0.38634]
[1727722127113,7.79911955,2589.2,2588.6,5.9017]
[1727722127114,0.99466113,2589.0,2588.6,5.9017]
[1727722127313,0.99466113,2589.1,2588.6,4.9357]
[1727722127522,0.99466113,2589.1,2589.0,0.38634]
[1727722127717,4.70279955,2589.2,2588.7,0.96597]
[1727722127718,0.99466113,2589.3,2589.2,0.38631]
[1727722127912,0.99466113,2589.4,2588.9,2.71]
[1727722128123,0.99466113,2589.4,2589.3,0.3863]
[1727722128326,5.05226113,2589.6,2589.4,0.38628]
[1727722128615,5.43851113,2589.6,2589.4,0.38627]
[1727722128821,5.05226113,2589.6,2589.4,0.38627]
[1727722129215,5.05226113,2589.6,2589.5,0.38627]
[1727722129413,4.20246113,2589.6,2589.5,0.38627]
[1727722129610,0.99466113,2589.7,2589.2,1.80787]
[1727722129816,0.99466113,2589.8,2589.7,0.38624]
[1727722130020,4.85626113,2589.8,2589.7,0.38624]
[1727722130515,3.8616,2589.8,2589.7,0.38624]
[1727722130714,1.85326113,2589.9,2589.7,0.38624]
[1727722130919,1.85326113,2589.9,2589.8,0.38622]
[1727722131825,0.8586,2589.9,2589.3,4.17352]
[1727722132129,1.85240137,2589.9,2589.8,0.38622]
[1727722132312,2.23862137,2589.9,2589.7,0.38623]
[1727722132618,1.85240137,2589.9,2589.7,0.38623]
[1727722133017,2.23861137,2589.9,2589.7,0.38623]
[1727722133217,0.38629,2589.4,2589.2,1.22841]
[1727722133417,3.09629,2589.4,2589.2,1.22841]
[1727722133719,2.71,2589.4,2589.3,0.3863]
[1727722133923,0.38628,2589.5,2589.3,0.3863]
[1727722133924,1.22328,2589.5,2589.3,0.3863]
[1727722134226,1.22327,2589.5,2589.3,0.38629]
[1727722134722,0.837,2589.5,2589.4,0.38628]
[1727722135217,4.58784137,2589.7,2589.5,0.38626]
[1727722135417,3.59404,2589.7,2589.5,0.38626]
[1727722136325,4.58010137,2589.8,2589.5,0.38626]
[1727722136514,0.38624,2589.7,2589.5,0.38626]
[1727722136712,0.38624,2589.7,2589.6,0.38625]
[1727722136713,3.2078,2589.7,2589.6,0.38625]
[1727722136922,1.87010137,2589.8,2589.3,3.67574]
[1727722136923,0.8763,2589.8,2589.7,0.38624]
[1727722137123,0.8586,2589.9,2589.4,0.96569]
[1727722137319,1.24481,2589.9,2589.5,0.828]
[1727722137519,0.8586,2589.9,2589.8,0.38622]
[1727722137718,4.20160137,2590.0,2589.8,0.38622]
[1727722137719,3.594,2590.0,2589.8,0.38622]
[1727722137932,3.594,2590.0,2589.7,0.38623]
[1727722137933,0.38622,2589.9,2589.7,0.38623]
[1727722138516,0.38621,2589.9,2589.5,0.828]
[1727722138722,0.38621,2589.9,2589.7,0.38624]
[1727722139030,0.38622,2589.8,2589.6,0.38624]
[1727722140426,0.38628,2589.5,2589.3,0.38629]
[1727722140722,3.09627,2589.5,2589.3,0.3863]
[1727722140927,2.71,2589.5,2589.4,0.38628]
[1727722141529,2.13966,2589.6,2589.4,0.38628]
[1727722141731,0.38629,2589.4,2589.2,1.2936]
[1727722142125,3.0963,2589.3,2589.2,0.9073]
[1727722142427,2.71,2589.3,2588.5,0.96604]
[1727722142628,2.71,2589.3,2588.7,1.794]
[1727722142828,0.38632,2589.2,2589.0,0.38634]
[1727722143124,0.38632,2589.2,2588.7,1.794]
[1727722143125,3.2078,2589.4,2589.3,0.3863]
[1727722143333,0.897,2589.6,2589.0,0.96586]
[1727722143520,0.897,2589.6,2589.0,3.67586]
[1727722143720,7.79050137,2589.7,2589.5,0.38627]
[1727722143721,6.30405,2589.7,2589.5,0.38627]
[1727722143917,0.38625,2589.6,2589.2,0.3863]
[1727722144123,0.38625,2589.6,2589.2,0.884]
[1727722144124,2.71,2589.4,2589.2,0.884]
[1727722144421,2.71,2589.4,2589.3,0.3863]
[1727722144728,3.09626,2589.6,2589.4,0.38627]
[1727722144934,3.09626,2589.6,2589.5,0.38627]
[1727722145127,2.71,2589.6,2589.5,0.38627]
[1727722145827,3.09626,2589.6,2589.4,0.38627]
[1727722146024,2.71,2589.6,2589.5,0.38627]
[1727722146224,3.09625,2589.6,2589.5,0.38627]
[1727722146433,3.09625,2589.6,2589.4,0.38627]
[1727722146633,2.71,2589.6,2589.4,0.38627]
[1727722146832,3.09626,2589.6,2589.4,0.38627]
[1727722147028,2.71,2589.6,2589.2,0.884]
[1727722147333,2.71,2589.6,2589.0,0.8995]
[1727722147334,3.0963,2589.3,2589.1,0.38632]
[1727722147629,0.38631,2589.2,2589.1,0.38632]
[1727722148129,4.82819,2589.2,2588.6,3.2078]
[1727722148328,2.71,2588.9,2588.8,0.38637]
[1727722148529,4.01423,2589.1,2589.0,0.38634]
[1727722148725,2.71,2589.3,2589.2,0.38631]
[1727722150225,3.0963,2589.3,2589.2,0.38631]
[1727722150623,2.71,2589.3,2589.2,0.38631]
[1727722151427,3.0963,2589.3,2589.2,0.38631]
[1727722152734,0.38632,2589.2,2589.1,0.38632]
[1727722153330,0.38633,2589.1,2589.0,0.38633]
[1727722153524,0.38638,2588.8,2588.7,0.38638]
[1727722154634,0.38638,2588.8,2588.7,0.38637]
[1727722155333,4.24958,2588.8,2588.7,0.38637]
[1727722156632,3.8632,2588.8,2588.7,0.38637]
[1727722156833,3.99917,2588.9,2588.6,1.7636]
[1727722157339,3.99917,2588.9,2588.8,0.38637]
[1727722157741,0.38637,2588.8,2588.7,0.38637]
[1727722157941,3.99917,2588.9,2588.8,0.38637]
[1727722158441,7.86157,2588.9,2588.8,0.38637]
[1727722161237,3.99917,2588.9,2588.8,0.38637]
[1727722161532,3.09637,2588.9,2588.8,0.38637]
[1727722162245,5.9178,2589.1,2588.6,2.7296]
[1727722162447,1.84140137,2589.2,2588.8,0.96593]
[1727722162645,1.84140137,2589.2,2589.1,0.38633]
[1727722162935,0.99380137,2589.2,2589.1,0.38633]
[1727722163532,0.99380137,2589.2,2589.1,1.29413]
[1727722164736,0.99380137,2589.2,2589.1,4.50193]
[1727722166239,0.99380137,2589.2,2589.1,8.36433]
[1727722167543,4.18,2589.4,2589.1,7.978]
[1727722167746,4.18,2589.4,2589.3,0.3863]
[1727722167944,4.20160137,2589.5,2589.4,0.38628]
[1727722168545,7.29787137,2589.5,2589.4,0.38628]
[1727722168741,0.38631,2589.2,2589.1,0.9078]
[1727722168936,0.38634,2589.1,2588.9,0.38635]
[1727722169144,0.38633,2589.1,2588.7,1.00602169]
[1727722169337,0.8985,2589.0,2588.7,1.00602169]
[1727722169544,2.71,2588.9,2588.8,0.38637]
[1727722169848,6.5724,2588.9,2588.7,1.00602169]
[1727722170051,0.38637,2588.8,2588.7,1.00602169]
[1727722170245,5.08877,2588.8,2588.7,1.00602169]
[1727722170747,10.7032,2588.8,2588.5,1.50903253]
[1727722170949,0.38642,2588.5,2588.4,2.01204338]
[1727722171448,10.24962,2588.5,2588.4,2.01204338]
[1727722172747,4.24962,2588.5,2588.4,2.01204338]
[1727722174056,0.38645,2588.3,2588.0,0.38648]
[1727722174353,3.09648,2588.1,2587.8,1.22621]
[1727722174557,2.71,2588.1,2587.9,0.3865]
[1727722175153,2.71,2588.1,2587.8,0.8397]
[1727722175346,3.2078,2588.3,2587.8,1.22622]
[1727722175347,2.71,2587.9,2587.8,1.22622]
[1727722175949,3.09651,2587.9,2587.8,0.8397]
[1727722176648,2.71,2587.9,2587.8,0.8397]
[1727722177055,3.09651,2587.9,2587.8,0.8397]
[1727722177257,2.71,2587.9,2587.8,0.8397]
[1727722177456,2.71,2587.9,2587.8,1.22622]
[1727722177848,3.09651,2587.9,2587.8,0.8397]
[1727722178051,3.09651,2587.9,2587.8,1.22622]
[1727722178052,2.71,2587.9,2587.8,1.22622]
[1727722178247,5.9178,2588.0,2587.8,1.22622]
[1727722178759,5.9178,2588.0,2587.8,0.8397]
[1727722178960,5.9178,2588.0,2587.9,0.38651]
[1727722179157,2.71,2588.0,2587.9,0.38651]
[1727722180857,6.574,2588.0,2587.6,0.8631]
[1727722181158,2.71,2587.9,2587.8,0.38651]
[1727722181553,3.09648,2588.1,2587.9,0.38649]
[1727722182558,6.30425,2588.3,2588.2,0.38646]
[1727722182752,6.30425,2588.3,2587.7,1.84895]
[1727722182953,2.71,2588.3,2588.2,0.38646]
[1727722183957,3.09645,2588.3,2588.2,0.38646]
[1727722184154,2.71,2588.3,2588.2,0.38646]
[1727722184354,0.99228991,2588.5,2588.1,0.8947]
[1727722184560,7.40626719,2588.6,2588.1,0.8947]
[1727722184561,6.91008991,2588.6,2588.1,0.8947]
[1727722184756,6.91008991,2588.6,2588.5,0.38642]
[1727722184757,6.30421,2588.6,2588.5,0.38642]
[1727722185151,5.9178,2588.6,2588.5,0.38642]
[1727722185361,1.85188991,2588.8,2588.3,0.9661]
[1727722185362,4.94826991,2588.8,2588.3,0.9661]
[1727722185551,4.94826991,2588.8,2588.7,0.38639]
[1727722185854,3.95598,2588.8,2588.7,0.38639]
[1727722186160,11.63288991,2588.8,2588.2,0.8378]
[1727722186363,3.09641,2588.6,2588.5,0.38642]
[1727722187757,0.38642,2588.5,2588.4,0.38642]
[1727722188558,0.38642,2588.5,2588.3,0.38644]